[Event "November 21 Early 2023"]
[Site "https://www.chess.com"]
[Date "2023.11.21"]
[Round "2"]
[White "Karthik Rajaa"]
[Black "Koridze, Lile"]
[Result "1/2-1/2"]
[Board "100"]
[TimeControl "180+1"]
[WhiteFideId "25035215"]
[BlackFideId "13612514"]
[WhiteElo "2276"]
[BlackElo "2061"]
[WhiteTeam "IND"]
[BlackTeam "GEO"]
[WhiteClock "0:00:10"]
[BlackClock "0:00:16"]

1. Nf3 {[%clk 0:03:00]}  Nf6 {[%clk 0:02:59]} 2. c4 {[%clk 0:03:01]}  e6 {[%clk 0:02:58]} 3. g3 {[%clk 0:03:00]}  d5 {[%clk 0:02:49]} 4. Bg2 {[%clk 0:03:00]}  d4 {[%clk 0:02:47]} 5. O-O {[%clk 0:03:00]}  c5 {[%clk 0:02:47]} 6. d3 {[%clk 0:03:00]}  Be7 {[%clk 0:02:47]} 7. e3 {[%clk 0:02:59]}  Nc6 {[%clk 0:02:47]} 8. exd4 {[%clk 0:02:59]}  cxd4 {[%clk 0:02:35]} 9. Re1 {[%clk 0:02:58]}  O-O {[%clk 0:02:34]} 10. Na3 {[%clk 0:02:49]}  Bxa3 {[%clk 0:01:59]} 11. bxa3 {[%clk 0:02:48]}  Re8 {[%clk 0:01:59]} 12. Ng5 {[%clk 0:02:12]}  e5 {[%clk 0:01:57]} 13. Ne4 {[%clk 0:02:13]}  Bf5 {[%clk 0:01:55]} 14. Rb1 {[%clk 0:02:09]}  Nxe4 {[%clk 0:01:48]} 15. Bxe4 {[%clk 0:02:03]}  Bxe4 {[%clk 0:01:48]} 16. Rxe4 {[%clk 0:02:04]}  Qd7 {[%clk 0:01:48]} 17. Re1 {[%clk 0:01:47]}  f5 {[%clk 0:01:41]} 18. Rb5 {[%clk 0:01:31]}  e4 {[%clk 0:01:39]} 19. Rd5 {[%clk 0:01:26]}  Qf7 {[%clk 0:01:39]} 20. Bf4 {[%clk 0:01:20]}  Rad8 {[%clk 0:01:31]} 21. Rxd8 {[%clk 0:01:19]}  Rxd8 {[%clk 0:01:25]} 22. dxe4 {[%clk 0:01:17]}  fxe4 {[%clk 0:01:17]} 23. Rxe4 {[%clk 0:01:10]}  Qxc4 {[%clk 0:01:15]} 24. Bg5 {[%clk 0:00:51]}  Rf8 {[%clk 0:01:11]} 25. Qb3 {[%clk 0:00:48]}  Qxb3 {[%clk 0:00:50]} 26. axb3 {[%clk 0:00:49]}  Rf5 {[%clk 0:00:49]} 27. Bd2 {[%clk 0:00:48]}  Re5 {[%clk 0:00:36]} 28. Rxe5 {[%clk 0:00:37]}  Nxe5 {[%clk 0:00:36]} 29. Kg2 {[%clk 0:00:37]}  Kf7 {[%clk 0:00:36]} 30. f4 {[%clk 0:00:37]}  Nd3 {[%clk 0:00:35]} 31. Kf3 {[%clk 0:00:35]}  Nc5 {[%clk 0:00:34]} 32. b4 {[%clk 0:00:34]}  Nb3 {[%clk 0:00:33]} 33. Be1 {[%clk 0:00:31]}  Ke6 {[%clk 0:00:27]} 34. Ke4 {[%clk 0:00:31]}  Kd6 {[%clk 0:00:24]} 35. Bf2 {[%clk 0:00:30]}  Nd2+ {[%clk 0:00:24]} 36. Kxd4 {[%clk 0:00:28]}  Nf3+ {[%clk 0:00:23]} 37. Ke4 {[%clk 0:00:27]}  Nxh2 {[%clk 0:00:22]} 38. Bxa7 {[%clk 0:00:27]}  Kc6 {[%clk 0:00:22]} 39. Bd4 {[%clk 0:00:25]}  g6 {[%clk 0:00:22]} 40. Be3 {[%clk 0:00:20]}  Ng4 {[%clk 0:00:19]} 41. Bg1 {[%clk 0:00:18]}  Kb5 {[%clk 0:00:15]} 42. f5 {[%clk 0:00:18]}  gxf5+ {[%clk 0:00:15]} 43. Kxf5 {[%clk 0:00:19]}  Nh6+ {[%clk 0:00:15]} 44. Kg5 {[%clk 0:00:18]}  Ng8 {[%clk 0:00:14]} 45. Be3 {[%clk 0:00:14]}  Ka4 {[%clk 0:00:15]} 46. Bc1 {[%clk 0:00:14]}  Kb3 {[%clk 0:00:15]} 47. b5 {[%clk 0:00:11]}  Kc2 {[%clk 0:00:14]} 48. Bf4 {[%clk 0:00:10]}  Kb3 {[%clk 0:00:13]} 49. Bd6 {[%clk 0:00:10]}  Ka4 {[%clk 0:00:13]} 50. b6 {[%clk 0:00:11]}  Kb5 {[%clk 0:00:13]} 51. Bc7 {[%clk 0:00:11]}  Ka4 {[%clk 0:00:14]} 52. Kf5 {[%clk 0:00:08]}  Kxa3 {[%clk 0:00:14]} 53. Ke6 {[%clk 0:00:09]}  Kb4 {[%clk 0:00:14]} 54. Kf7 {[%clk 0:00:09]}  Nh6+ {[%clk 0:00:14]} 55. Kf6 {[%clk 0:00:08]}  Kb5 {[%clk 0:00:13]} 56. Kg7 {[%clk 0:00:08]}  Nf5+ {[%clk 0:00:13]} 57. Kxh7 {[%clk 0:00:08]}  Nxg3 {[%clk 0:00:14]} 58. Bxg3 {[%clk 0:00:08]}  Kxb6 {[%clk 0:00:14]} 59. Kg6 {[%clk 0:00:08]}  Kc5 {[%clk 0:00:14]} 60. Be1 {[%clk 0:00:09]}  Kc4 {[%clk 0:00:14]} 61. Kf5 {[%clk 0:00:09]}  b5 {[%clk 0:00:15]} 62. Ke5 {[%clk 0:00:09]}  b4 {[%clk 0:00:16]} 63. Bxb4 {[%clk 0:00:10]} 1/2-1/2

[Event "November 21 Early 2023"]
[Site "https://www.chess.com"]
[Date "2023.11.21"]
[Round "2"]
[White "Mohammed, Zozek Salah Mohammed"]
[Black "Sattarov, Bobir"]
[Result "1-0"]
[Board "101"]
[TimeControl "180+1"]
[WhiteFideId "4803361"]
[BlackFideId "14203081"]
[WhiteElo "2211"]
[BlackElo "2351"]
[WhiteTeam "IRQ"]
[BlackTeam "UZB"]
[WhiteClock "0:00:07"]
[BlackClock "0:00:00"]

1. d4 {[%clk 0:02:53]}  Nf6 {[%clk 0:02:59]} 2. Nf3 {[%clk 0:02:52]}  c5 {[%clk 0:03:00]} 3. g3 {[%clk 0:02:52]}  cxd4 {[%clk 0:02:59]} 4. Nxd4 {[%clk 0:02:53]}  Nc6 {[%clk 0:02:59]} 5. Bg2 {[%clk 0:02:52]}  Qb6 {[%clk 0:02:59]} 6. Nb3 {[%clk 0:02:50]}  e6 {[%clk 0:02:57]} 7. O-O {[%clk 0:02:50]}  Be7 {[%clk 0:02:53]} 8. c4 {[%clk 0:02:49]}  O-O {[%clk 0:02:53]} 9. Nc3 {[%clk 0:02:50]}  d6 {[%clk 0:02:52]} 10. Bg5 {[%clk 0:02:47]}  Ne5 {[%clk 0:02:46]} 11. Na4 {[%clk 0:02:11]}  Qc7 {[%clk 0:02:44]} 12. Rc1 {[%clk 0:02:08]}  Bd7 {[%clk 0:02:42]} 13. Nd4 {[%clk 0:02:02]}  Nxc4 {[%clk 0:02:28]} 14. b3 {[%clk 0:01:53]}  Bxa4 {[%clk 0:02:27]} 15. Qd3 {[%clk 0:01:28]}  Bd7 {[%clk 0:01:59]} 16. Rxc4 {[%clk 0:01:25]}  Qa5 {[%clk 0:01:56]} 17. Bxf6 {[%clk 0:01:13]}  Bxf6 {[%clk 0:01:55]} 18. Bxb7 {[%clk 0:01:11]}  d5 {[%clk 0:01:47]} 19. Rc2 {[%clk 0:01:02]}  Rab8 {[%clk 0:01:45]} 20. Nc6 {[%clk 0:00:54]}  Bxc6 {[%clk 0:01:37]} 21. Bxc6 {[%clk 0:00:55]}  g6 {[%clk 0:01:30]} 22. Rfc1 {[%clk 0:00:55]}  Kg7 {[%clk 0:01:28]} 23. e4 {[%clk 0:00:53]}  dxe4 {[%clk 0:01:22]} 24. Bxe4 {[%clk 0:00:52]}  Rfd8 {[%clk 0:01:22]} 25. Qf3 {[%clk 0:00:52]}  Rd2 {[%clk 0:01:21]} 26. Rxd2 {[%clk 0:00:50]}  Qxd2 {[%clk 0:01:22]} 27. Rc2 {[%clk 0:00:50]}  Qe1+ {[%clk 0:01:21]} 28. Kg2 {[%clk 0:00:51]}  Rd8 {[%clk 0:01:22]} 29. Qe2 {[%clk 0:00:48]}  Qa1 {[%clk 0:01:21]} 30. Rd2 {[%clk 0:00:40]}  Bd4 {[%clk 0:01:19]} 31. Bf3 {[%clk 0:00:35]}  Rc8 {[%clk 0:01:10]} 32. Qd3 {[%clk 0:00:29]}  Bb6 {[%clk 0:01:07]} 33. Qd7 {[%clk 0:00:24]}  Rc1 {[%clk 0:01:04]} 34. Bg4 {[%clk 0:00:23]}  Rg1+ {[%clk 0:00:57]} 35. Kh3 {[%clk 0:00:23]}  Qf1+ {[%clk 0:00:39]} 36. Kh4 {[%clk 0:00:23]}  Qg2 {[%clk 0:00:39]} 37. f4 {[%clk 0:00:21]}  Qe4 {[%clk 0:00:31]} 38. Re2 {[%clk 0:00:18]}  Qd4 {[%clk 0:00:10]} 39. Bxe6 {[%clk 0:00:16]}  Qf6+ {[%clk 0:00:10]} 40. Kh3 {[%clk 0:00:14]}  h5 {[%clk 0:00:08]} 41. Bxf7 {[%clk 0:00:13]}  Kh6 {[%clk 0:00:06]} 42. Qe6 {[%clk 0:00:11]}  Qxe6+ {[%clk 0:00:04]} 43. Rxe6 {[%clk 0:00:12]}  Kg7 {[%clk 0:00:04]} 44. Bxg6 {[%clk 0:00:12]}  h4 {[%clk 0:00:04]} 45. g4 {[%clk 0:00:11]}  Rf1 {[%clk 0:00:04]} 46. f5 {[%clk 0:00:10]}  Bd8 {[%clk 0:00:03]} 47. Kg2 {[%clk 0:00:09]}  Rb1 {[%clk 0:00:00]} 48. Re2 {[%clk 0:00:07]} 1-0

[Event "November 21 Early 2023"]
[Site "https://www.chess.com"]
[Date "2023.11.21"]
[Round "2"]
[White "Goltsev, Dmitry"]
[Black "Kornyukov, Alexey"]
[Result "1-0"]
[Board "103"]
[TimeControl "180+1"]
[WhiteFideId "24176710"]
[BlackFideId "4150457"]
[WhiteElo "2370"]
[BlackElo "2352"]
[WhiteTeam "RUS"]
[BlackTeam "RUS"]
[WhiteClock "0:00:35"]
[BlackClock "0:00:07"]

1. e4 {[%clk 0:02:56]}  c5 {[%clk 0:02:58]} 2. Nf3 {[%clk 0:02:53]}  Nc6 {[%clk 0:02:58]} 3. d4 {[%clk 0:02:54]}  cxd4 {[%clk 0:02:58]} 4. Nxd4 {[%clk 0:02:55]}  e5 {[%clk 0:02:58]} 5. Nf5 {[%clk 0:02:55]}  d5 {[%clk 0:02:56]} 6. Qxd5 {[%clk 0:02:54]}  Qxd5 {[%clk 0:02:49]} 7. exd5 {[%clk 0:02:55]}  Bxf5 {[%clk 0:02:49]} 8. dxc6 {[%clk 0:02:54]}  bxc6 {[%clk 0:02:48]} 9. Bd3 {[%clk 0:02:53]}  Bxd3 {[%clk 0:02:42]} 10. cxd3 {[%clk 0:02:54]}  O-O-O {[%clk 0:02:40]} 11. Ke2 {[%clk 0:02:54]}  Nf6 {[%clk 0:02:38]} 12. Nc3 {[%clk 0:02:54]}  Nd5 {[%clk 0:02:34]} 13. Ne4 {[%clk 0:02:50]}  h6 {[%clk 0:02:25]} 14. Be3 {[%clk 0:02:43]}  f5 {[%clk 0:02:21]} 15. Nc3 {[%clk 0:02:39]}  Nxe3 {[%clk 0:02:04]} 16. fxe3 {[%clk 0:02:36]}  Bb4 {[%clk 0:02:04]} 17. Rac1 {[%clk 0:02:36]}  Bxc3 {[%clk 0:02:02]} 18. Rxc3 {[%clk 0:02:37]}  Kc7 {[%clk 0:01:59]} 19. Rhc1 {[%clk 0:02:37]}  Rd6 {[%clk 0:01:59]} 20. b4 {[%clk 0:02:24]}  Kb7 {[%clk 0:01:57]} 21. a4 {[%clk 0:02:04]}  Rhd8 {[%clk 0:01:44]} 22. a5 {[%clk 0:01:51]}  a6 {[%clk 0:01:40]} 23. Rc5 {[%clk 0:01:46]}  Rxd3 {[%clk 0:01:12]} 24. Rxc6 {[%clk 0:01:43]}  Rd2+ {[%clk 0:01:10]} 25. Kf3 {[%clk 0:01:40]}  e4+ {[%clk 0:01:02]} 26. Kg3 {[%clk 0:01:37]}  R8d7 {[%clk 0:01:00]} 27. Rb6+ {[%clk 0:01:31]}  Ka7 {[%clk 0:00:57]} 28. Rcc6 {[%clk 0:01:25]}  R2d3 {[%clk 0:00:55]} 29. Rxa6+ {[%clk 0:01:24]}  Kb7 {[%clk 0:00:55]} 30. Rcb6+ {[%clk 0:01:24]}  Kc7 {[%clk 0:00:55]} 31. Kf4 {[%clk 0:01:24]}  R7d5 {[%clk 0:00:42]} 32. h4 {[%clk 0:01:10]}  g5+ {[%clk 0:00:39]} 33. hxg5 {[%clk 0:01:11]}  hxg5+ {[%clk 0:00:39]} 34. Kxg5 {[%clk 0:01:12]}  Rxe3 {[%clk 0:00:39]} 35. Ra7+ {[%clk 0:01:11]}  Kc8 {[%clk 0:00:38]} 36. Rh6 {[%clk 0:01:07]}  Rg3+ {[%clk 0:00:36]} 37. Kh4 {[%clk 0:01:07]}  Rg4+ {[%clk 0:00:34]} 38. Kh3 {[%clk 0:01:04]}  Kb8 {[%clk 0:00:32]} 39. Rf7 {[%clk 0:00:56]}  Rg8 {[%clk 0:00:29]} 40. a6 {[%clk 0:00:45]}  e3 {[%clk 0:00:24]} 41. Re6 {[%clk 0:00:41]}  Rd3 {[%clk 0:00:20]} 42. b5 {[%clk 0:00:36]}  e2+ {[%clk 0:00:20]} 43. Kh2 {[%clk 0:00:35]}  Rh8+ {[%clk 0:00:20]} 44. Kg1 {[%clk 0:00:32]}  Rd1+ {[%clk 0:00:10]} 45. Kf2 {[%clk 0:00:32]}  e1=Q+ {[%clk 0:00:10]} 46. Rxe1 {[%clk 0:00:33]}  Rxe1 {[%clk 0:00:10]} 47. Kxe1 {[%clk 0:00:34]}  Rh2 {[%clk 0:00:09]} 48. Kf2 {[%clk 0:00:33]}  Rh5 {[%clk 0:00:09]} 49. b6 {[%clk 0:00:34]}  Kc8 {[%clk 0:00:09]} 50. Rf8+ {[%clk 0:00:34]}  Kd7 {[%clk 0:00:07]} 51. a7 {[%clk 0:00:35]} 1-0

[Event "November 21 Early 2023"]
[Site "https://www.chess.com"]
[Date "2023.11.21"]
[Round "2"]
[White "Hoffmann, Asa"]
[Black "reevecanada"]
[Result "1-0"]
[Board "106"]
[TimeControl "180+1"]
[WhiteFideId "2001470"]
[WhiteElo "2117"]
[BlackElo "2706"]
[WhiteTeam "USA"]
[WhiteClock "0:00:51"]
[BlackClock "0:01:42"]

1. d4 {[%clk 0:02:56]}  Nf6 {[%clk 0:02:59]} 2. Bg5 {[%clk 0:02:55]}  Ne4 {[%clk 0:02:58]} 3. Bf4 {[%clk 0:02:54]}  d5 {[%clk 0:02:58]} 4. f3 {[%clk 0:02:54]}  Nf6 {[%clk 0:02:57]} 5. e4 {[%clk 0:02:54]}  c5 {[%clk 0:02:56]} 6. e5 {[%clk 0:02:50]}  Nfd7 {[%clk 0:02:55]} 7. c3 {[%clk 0:02:49]}  Nc6 {[%clk 0:02:54]} 8. Be3 {[%clk 0:02:48]}  cxd4 {[%clk 0:02:52]} 9. cxd4 {[%clk 0:02:48]}  Qb6 {[%clk 0:02:52]} 10. Qd2 {[%clk 0:02:45]}  e6 {[%clk 0:02:51]} 11. f4 {[%clk 0:02:43]}  g6 {[%clk 0:02:50]} 12. Nc3 {[%clk 0:02:42]}  h5 {[%clk 0:02:50]} 13. Nf3 {[%clk 0:02:42]}  a6 {[%clk 0:02:50]} 14. Bd3 {[%clk 0:02:39]}  Be7 {[%clk 0:02:49]} 15. O-O {[%clk 0:02:38]}  Nf8 {[%clk 0:02:48]} 16. a3 {[%clk 0:02:34]}  Na5 {[%clk 0:02:47]} 17. Rab1 {[%clk 0:02:28]}  Nb3 {[%clk 0:02:45]} 18. Qd1 {[%clk 0:02:21]}  Bd7 {[%clk 0:02:45]} 19. Bc2 {[%clk 0:02:19]}  Na5 {[%clk 0:02:44]} 20. Na4 {[%clk 0:02:13]}  Qd8 {[%clk 0:02:41]} 21. Nc5 {[%clk 0:02:12]}  Bxc5 {[%clk 0:02:40]} 22. dxc5 {[%clk 0:02:12]}  Nc4 {[%clk 0:02:39]} 23. Bd4 {[%clk 0:02:09]}  Bc6 {[%clk 0:02:39]} 24. Ng5 {[%clk 0:01:53]}  Nd7 {[%clk 0:02:32]} 25. Nxe6 {[%clk 0:01:47]}  fxe6 {[%clk 0:02:31]} 26. Bxg6+ {[%clk 0:01:47]}  Ke7 {[%clk 0:02:31]} 27. f5 {[%clk 0:01:47]}  Ndxe5 {[%clk 0:02:30]} 28. f6+ {[%clk 0:01:33]}  Kd7 {[%clk 0:02:25]} 29. Bxh5 {[%clk 0:01:31]}  Bb5 {[%clk 0:02:10]} 30. b3 {[%clk 0:01:27]}  Nxa3 {[%clk 0:02:09]} 31. Bxe5 {[%clk 0:01:25]}  Nxb1 {[%clk 0:02:08]} 32. Bg4 {[%clk 0:01:10]}  Bxf1 {[%clk 0:02:01]} 33. Qxd5+ {[%clk 0:01:04]}  Ke8 {[%clk 0:01:46]} 34. Qxe6+ {[%clk 0:01:04]}  Kf8 {[%clk 0:01:46]} 35. Bd6+ {[%clk 0:01:02]}  Qxd6 {[%clk 0:01:44]} 36. Qxd6+ {[%clk 0:00:56]}  Kg8 {[%clk 0:01:44]} 37. Qe6+ {[%clk 0:00:53]}  Kh7 {[%clk 0:01:42]} 38. Qf7+ {[%clk 0:00:52]}  Kh6 {[%clk 0:01:42]} 39. Qg7# {[%clk 0:00:51]} 1-0

[Event "November 21 Early 2023"]
[Site "https://www.chess.com"]
[Date "2023.11.21"]
[Round "2"]
[White "Hasangatin, Ramil"]
[Black "Bobomurodova, Maftuna"]
[Result "1/2-1/2"]
[Board "107"]
[TimeControl "180+1"]
[WhiteFideId "4122160"]
[BlackFideId "14207400"]
[WhiteElo "2317"]
[BlackElo "1814"]
[WhiteTeam "RUS"]
[BlackTeam "UZB"]
[WhiteClock "0:00:20"]
[BlackClock "0:00:06"]

1. e4 {[%clk 0:03:00]}  e5 {[%clk 0:02:59]} 2. Nf3 {[%clk 0:03:01]}  Nc6 {[%clk 0:02:59]} 3. Bb5 {[%clk 0:03:01]}  Nf6 {[%clk 0:02:58]} 4. d3 {[%clk 0:03:00]}  Bc5 {[%clk 0:02:57]} 5. Bxc6 {[%clk 0:02:59]}  dxc6 {[%clk 0:02:54]} 6. Bg5 {[%clk 0:03:00]}  Qe7 {[%clk 0:02:50]} 7. Nbd2 {[%clk 0:02:59]}  h6 {[%clk 0:02:49]} 8. Bh4 {[%clk 0:02:58]}  Bd6 {[%clk 0:02:36]} 9. Nc4 {[%clk 0:02:58]}  Bg4 {[%clk 0:02:18]} 10. h3 {[%clk 0:02:57]}  Bxf3 {[%clk 0:02:17]} 11. Qxf3 {[%clk 0:02:57]}  O-O-O {[%clk 0:02:15]} 12. Bxf6 {[%clk 0:02:57]}  Qxf6 {[%clk 0:02:13]} 13. Qxf6 {[%clk 0:02:56]}  gxf6 {[%clk 0:02:13]} 14. Ne3 {[%clk 0:02:56]}  h5 {[%clk 0:02:08]} 15. h4 {[%clk 0:02:56]}  Rdg8 {[%clk 0:02:04]} 16. g3 {[%clk 0:02:56]}  Kd7 {[%clk 0:02:02]} 17. Nf5 {[%clk 0:02:56]}  c5 {[%clk 0:02:02]} 18. Ke2 {[%clk 0:02:56]}  c6 {[%clk 0:02:01]} 19. a4 {[%clk 0:02:56]}  b6 {[%clk 0:01:55]} 20. a5 {[%clk 0:02:54]}  b5 {[%clk 0:01:55]} 21. a6 {[%clk 0:02:54]}  Rb8 {[%clk 0:01:52]} 22. b3 {[%clk 0:02:53]}  Bc7 {[%clk 0:01:48]} 23. Rhe1 {[%clk 0:02:43]}  Bd6 {[%clk 0:01:40]} 24. Red1 {[%clk 0:02:42]}  Bc7 {[%clk 0:01:38]} 25. Kf3 {[%clk 0:02:42]}  Bd6 {[%clk 0:01:36]} 26. Kg2 {[%clk 0:02:37]}  b4 {[%clk 0:01:29]} 27. Kh3 {[%clk 0:02:29]}  Rhd8 {[%clk 0:01:23]} 28. Re1 {[%clk 0:02:29]}  Bf8 {[%clk 0:01:22]} 29. Re3 {[%clk 0:02:28]}  Ke6 {[%clk 0:01:21]} 30. Rf3 {[%clk 0:02:28]}  Rd7 {[%clk 0:01:14]} 31. Ne3 {[%clk 0:02:28]}  Be7 {[%clk 0:01:06]} 32. Rf5 {[%clk 0:02:27]}  Rh8 {[%clk 0:01:05]} 33. Nc4 {[%clk 0:02:27]}  Rdd8 {[%clk 0:00:59]} 34. Na5 {[%clk 0:02:27]}  Kd7 {[%clk 0:00:58]} 35. Re1 {[%clk 0:02:21]}  Rdg8 {[%clk 0:00:58]} 36. Re3 {[%clk 0:02:20]}  Rb8 {[%clk 0:00:57]} 37. Nc4 {[%clk 0:02:15]}  Rbg8 {[%clk 0:00:54]} 38. Re1 {[%clk 0:02:14]}  Rb8 {[%clk 0:00:54]} 39. Rg1 {[%clk 0:02:14]}  Rbg8 {[%clk 0:00:53]} 40. Rg2 {[%clk 0:02:15]}  Rg6 {[%clk 0:00:52]} 41. f3 {[%clk 0:02:14]}  Rgh6 {[%clk 0:00:51]} 42. f4 {[%clk 0:02:08]}  exf4 {[%clk 0:00:43]} 43. gxf4 {[%clk 0:02:09]}  Rg6 {[%clk 0:00:42]} 44. Rf2 {[%clk 0:01:52]}  Rhg8 {[%clk 0:00:43]} 45. Rxh5 {[%clk 0:01:50]}  Rg3+ {[%clk 0:00:42]} 46. Kh2 {[%clk 0:01:50]}  R3g4 {[%clk 0:00:42]} 47. Ne3 {[%clk 0:01:46]}  Rg1 {[%clk 0:00:37]} 48. Rg2 {[%clk 0:01:28]}  R8xg2+ {[%clk 0:00:34]} 49. Nxg2 {[%clk 0:01:29]}  Rc1 {[%clk 0:00:33]} 50. Rf5 {[%clk 0:01:28]}  Rxc2 {[%clk 0:00:31]} 51. h5 {[%clk 0:01:29]}  Ke6 {[%clk 0:00:24]} 52. h6 {[%clk 0:01:28]}  Bf8 {[%clk 0:00:24]} 53. Rh5 {[%clk 0:01:28]}  Rc3 {[%clk 0:00:22]} 54. h7 {[%clk 0:01:27]}  Bg7 {[%clk 0:00:23]} 55. h8=Q {[%clk 0:01:27]}  Bxh8 {[%clk 0:00:22]} 56. Rxh8 {[%clk 0:01:28]}  Rxb3 {[%clk 0:00:21]} 57. Ra8 {[%clk 0:01:13]}  Rxd3 {[%clk 0:00:20]} 58. Rxa7 {[%clk 0:01:13]}  Ra3 {[%clk 0:00:20]} 59. Ra8 {[%clk 0:01:14]}  b3 {[%clk 0:00:20]} 60. a7 {[%clk 0:01:14]}  Kd7 {[%clk 0:00:19]} 61. Rf8 {[%clk 0:00:57]}  Rxa7 {[%clk 0:00:18]} 62. Rxf7+ {[%clk 0:00:57]}  Kc8 {[%clk 0:00:18]} 63. Rxa7 {[%clk 0:00:57]}  b2 {[%clk 0:00:18]} 64. e5 {[%clk 0:00:46]}  fxe5 {[%clk 0:00:18]} 65. fxe5 {[%clk 0:00:47]}  b1=Q {[%clk 0:00:18]} 66. e6 {[%clk 0:00:47]}  Qf5 {[%clk 0:00:16]} 67. Ra8+ {[%clk 0:00:39]}  Kc7 {[%clk 0:00:14]} 68. e7 {[%clk 0:00:40]}  Qe5+ {[%clk 0:00:14]} 69. Kg1 {[%clk 0:00:38]}  Qxe7 {[%clk 0:00:15]} 70. Ra3 {[%clk 0:00:36]}  Kd6 {[%clk 0:00:16]} 71. Re3 {[%clk 0:00:36]}  Qg5 {[%clk 0:00:15]} 72. Kf2 {[%clk 0:00:36]}  c4 {[%clk 0:00:15]} 73. Ne1 {[%clk 0:00:35]}  Kc5 {[%clk 0:00:15]} 74. Nf3 {[%clk 0:00:34]}  Qf4 {[%clk 0:00:16]} 75. Ke2 {[%clk 0:00:33]}  Kb4 {[%clk 0:00:15]} 76. Ne5 {[%clk 0:00:31]}  Qh2+ {[%clk 0:00:11]} 77. Kf3 {[%clk 0:00:26]}  c3 {[%clk 0:00:12]} 78. Nxc6+ {[%clk 0:00:25]}  Kb3 {[%clk 0:00:11]} 79. Nd4+ {[%clk 0:00:22]}  Kc4 {[%clk 0:00:11]} 80. Ne2 {[%clk 0:00:21]}  Qh3+ {[%clk 0:00:10]} 81. Kf2 {[%clk 0:00:21]}  Qf5+ {[%clk 0:00:10]} 82. Rf3 {[%clk 0:00:20]}  Qc5+ {[%clk 0:00:08]} 83. Ke1 {[%clk 0:00:20]}  Qa3 {[%clk 0:00:05]} 84. Rxc3+ {[%clk 0:00:19]}  Qxc3+ {[%clk 0:00:06]} 85. Nxc3 {[%clk 0:00:20]} 1/2-1/2

[Event "November 21 Early 2023"]
[Site "https://www.chess.com"]
[Date "2023.11.21"]
[Round "2"]
[White "Matinian, Nikita"]
[Black "Cueto, Jonny"]
[Result "1-0"]
[Board "114"]
[TimeControl "180+1"]
[WhiteFideId "24129100"]
[BlackFideId "3300145"]
[WhiteElo "2417"]
[BlackElo "2155"]
[WhiteTeam "FID"]
[BlackTeam "BOL"]
[WhiteClock "0:02:33"]
[BlackClock "0:00:50"]

1. e4 {[%clk 0:03:00]}  e6 {[%clk 0:02:59]} 2. d4 {[%clk 0:03:01]}  d5 {[%clk 0:03:00]} 3. Nc3 {[%clk 0:03:01]}  Nf6 {[%clk 0:03:00]} 4. e5 {[%clk 0:03:00]}  Nfd7 {[%clk 0:03:00]} 5. Nce2 {[%clk 0:03:00]}  c5 {[%clk 0:02:59]} 6. c3 {[%clk 0:03:00]}  b5 {[%clk 0:03:00]} 7. f4 {[%clk 0:02:59]}  Nc6 {[%clk 0:03:00]} 8. Nf3 {[%clk 0:02:59]}  b4 {[%clk 0:03:00]} 9. f5 {[%clk 0:02:59]}  bxc3 {[%clk 0:03:00]} 10. fxe6 {[%clk 0:02:53]}  fxe6 {[%clk 0:03:01]} 11. bxc3 {[%clk 0:02:52]}  Be7 {[%clk 0:02:59]} 12. Nf4 {[%clk 0:02:51]}  Nb6 {[%clk 0:02:49]} 13. Bb5 {[%clk 0:02:49]}  Qd7 {[%clk 0:02:41]} 14. dxc5 {[%clk 0:02:48]}  Nc4 {[%clk 0:02:31]} 15. Nd4 {[%clk 0:02:39]}  N4xe5 {[%clk 0:02:03]} 16. Qh5+ {[%clk 0:02:38]}  g6 {[%clk 0:01:54]} 17. Nxg6 {[%clk 0:02:38]}  hxg6 {[%clk 0:01:52]} 18. Qxh8+ {[%clk 0:02:38]}  Bf8 {[%clk 0:00:50]} 19. O-O {[%clk 0:02:33]} 1-0

[Event "November 21 Early 2023"]
[Site "https://www.chess.com"]
[Date "2023.11.21"]
[Round "2"]
[White "Quirke, Jeffrey"]
[Black "Starozhilov, Leonid"]
[Result "0-1"]
[Board "115"]
[TimeControl "180+1"]
[WhiteFideId "2013029"]
[BlackFideId "14106752"]
[WhiteElo "2224"]
[BlackElo "2270"]
[WhiteTeam "USA"]
[BlackTeam "UKR"]
[WhiteClock "0:00:00"]
[BlackClock "0:00:42"]

1. e4 {[%clk 0:03:00]}  c6 {[%clk 0:02:59]} 2. d4 {[%clk 0:02:59]}  d5 {[%clk 0:03:00]} 3. exd5 {[%clk 0:02:59]}  cxd5 {[%clk 0:03:01]} 4. Nf3 {[%clk 0:02:58]}  Nc6 {[%clk 0:03:01]} 5. c3 {[%clk 0:02:58]}  Bg4 {[%clk 0:03:01]} 6. Be3 {[%clk 0:02:58]}  e6 {[%clk 0:03:01]} 7. Nbd2 {[%clk 0:02:59]}  Bd6 {[%clk 0:03:01]} 8. h3 {[%clk 0:02:59]}  Bh5 {[%clk 0:03:01]} 9. a4 {[%clk 0:02:53]}  Nge7 {[%clk 0:03:01]} 10. g4 {[%clk 0:02:53]}  Bg6 {[%clk 0:03:00]} 11. Nh4 {[%clk 0:02:53]}  h5 {[%clk 0:02:56]} 12. Nxg6 {[%clk 0:02:51]}  Nxg6 {[%clk 0:02:56]} 13. gxh5 {[%clk 0:02:50]}  Nf4 {[%clk 0:02:53]} 14. Qf3 {[%clk 0:02:48]}  Qf6 {[%clk 0:02:50]} 15. O-O-O {[%clk 0:02:32]}  Nxh5 {[%clk 0:02:35]} 16. Qxf6 {[%clk 0:02:29]}  Nxf6 {[%clk 0:02:36]} 17. Rg1 {[%clk 0:02:23]}  g6 {[%clk 0:02:35]} 18. b4 {[%clk 0:02:07]}  Rc8 {[%clk 0:02:30]} 19. Kb2 {[%clk 0:02:08]}  Ne7 {[%clk 0:02:26]} 20. Nb3 {[%clk 0:02:02]}  Nf5 {[%clk 0:02:12]} 21. a5 {[%clk 0:01:51]}  b6 {[%clk 0:02:06]} 22. axb6 {[%clk 0:01:37]}  axb6 {[%clk 0:02:07]} 23. Ra1 {[%clk 0:00:55]}  O-O {[%clk 0:02:00]} 24. Bd3 {[%clk 0:00:46]}  Nxe3 {[%clk 0:01:45]} 25. fxe3 {[%clk 0:00:46]}  Kg7 {[%clk 0:01:41]} 26. Ra6 {[%clk 0:00:41]}  Bc7 {[%clk 0:01:39]} 27. Nd2 {[%clk 0:00:38]}  Ra8 {[%clk 0:01:33]} 28. Rga1 {[%clk 0:00:36]}  Rxa6 {[%clk 0:01:30]} 29. Rxa6 {[%clk 0:00:37]}  Rh8 {[%clk 0:01:29]} 30. Ra7 {[%clk 0:00:35]}  Bd8 {[%clk 0:01:28]} 31. Bf1 {[%clk 0:00:32]}  Rh5 {[%clk 0:01:24]} 32. Nf3 {[%clk 0:00:18]}  Rf5 {[%clk 0:01:18]} 33. Bg2 {[%clk 0:00:18]}  Ne4 {[%clk 0:01:16]} 34. Rd7 {[%clk 0:00:12]}  Bf6 {[%clk 0:01:11]} 35. Rb7 {[%clk 0:00:11]}  Ng5 {[%clk 0:01:12]} 36. Nxg5 {[%clk 0:00:10]}  Rf2+ {[%clk 0:01:09]} 37. Kb3 {[%clk 0:00:09]}  Bxg5 {[%clk 0:01:10]} 38. Bh1 {[%clk 0:00:05]}  Rh2 {[%clk 0:01:03]} 39. Bxd5 {[%clk 0:00:03]}  exd5 {[%clk 0:01:02]} 40. Rxb6 {[%clk 0:00:04]}  Rxh3 {[%clk 0:01:02]} 41. Rd6 {[%clk 0:00:04]}  Rxe3 {[%clk 0:01:01]} 42. Rxd5 {[%clk 0:00:04]}  Bf4 {[%clk 0:01:01]} 43. b5 {[%clk 0:00:05]}  g5 {[%clk 0:01:02]} 44. b6 {[%clk 0:00:06]}  g4 {[%clk 0:01:02]} 45. b7 {[%clk 0:00:04]}  Re8 {[%clk 0:00:58]} 46. Rf5 {[%clk 0:00:04]}  Bh6 {[%clk 0:00:44]} 47. Rb5 {[%clk 0:00:00]}  g3 {[%clk 0:00:42]} 0-1